fUSD/lending_fUSD_20240419
["ID","MTS","AMOUNT","RATE_DAILY","PERIOD"]
[322954341,1713540646329,-433.35753806,0.00013698,2]
[322954342,1713540954484,288.75,0.00010398,2]
[322954343,1713540976283,160.79,0.0001611,15]
[322954344,1713541111444,92000.0,0.000282,120]
[322954347,1713541459882,160.79,0.0001611,15]
[322954349,1713541518049,1070.0,0.000244,120]
[322954351,1713541521366,811.0,0.00013698,5]
[322954352,1713541531022,150.0,9.996e-05,2]
[322954353,1713541531046,124.31,9.996e-05,2]
[322954354,1713541665527,1509.05562127,0.00013698,14]
[322954355,1713541684952,150.0,0.0001,3]
[322954356,1713541684973,150.0,0.0001,3]
[322954357,1713541684995,150.0,0.0001,3]
[322954358,1713541686416,150.0,0.0001,3]
[322954359,1713541686439,150.0,0.0001,3]
[322954360,1713541686462,150.0,0.0001,3]
[322954361,1713541686485,101.29209618,0.0001,3]
[322954362,1713541696654,150.0,9.996e-05,2]
[322954363,1713541696676,150.0,9.996e-05,2]
[322954364,1713541696696,21.47948914,9.996e-05,2]
[322954366,1713541707982,150.0,9.996e-05,2]
[322954367,1713541708004,5.44721549,9.996e-05,2]
[322954368,1713541722209,150.0,9.996e-05,2]
[322954369,1713541722230,136.45678082,9.996e-05,2]
[322954370,1713541741886,150.0,9.996e-05,2]
[322954371,1713541741907,72.01247467,9.996e-05,2]
[322954388,1713541831926,-257.48169171,0.00011897,2]
[322954389,1713541831938,-460.000005,0.00011897,2]
[322954390,1713541831951,-6620.93762746,0.00011897,2]
[322954391,1713541831961,-4581.21114034,0.00011898,2]
[322954392,1713541831971,-207.69492018,0.00011898,2]
[322954393,1713541831980,-2178.66211455,0.00011899,2]
[322954394,1713541831990,-387.16635918,0.000119,2]
[322954395,1713541832002,-571.23736106,0.000119,2]
[322954396,1713541832022,-1479.4257306,0.000119,2]
[322954397,1713541832034,-3216.3,0.000119,2]
[322954398,1713541832046,-2720.78120573,0.000119,2]
[322954399,1713541832057,-3391.0572534,0.000119,2]
[322954400,1713541832088,-1819.35,0.000119,2]
[322954401,1713541832100,-389.84087267,0.000119,2]
[322954402,1713541832111,-5760.8551,0.000119,2]
[322954403,1713541832131,-352.8549735,0.000119,2]
[322954404,1713541832143,-5387.05570552,0.000119,2]
[322954405,1713541832154,-9763.75657561,0.000119,2]
[322954406,1713541832164,-150.0,0.00011907,2]
[322954407,1713541832174,-1626.0,0.00011908,2]
[322954408,1713541832183,-1000.0,0.00011912,2]
[322954409,1713541832192,-5934.85,0.0001192,2]
[322954410,1713541832202,-274.31,0.0001226,2]
[322954411,1713541832212,-1279.32448358,0.000123,2]
[322954412,1713541832222,-9999.99,0.000123,2]
[322954413,1713541832231,-1160.88,0.000123,2]
[322954414,1713541832241,-150.99,0.000123,2]
[322954415,1713541832251,-158.42,0.000123,2]
[322954416,1713541832261,-162.88,0.00012305,2]
[322954418,1713541832271,-886.94,0.00012305,2]
[322954420,1713541832280,-3913.83215107,0.00012305,2]
[322954426,1713541832332,-606.0,0.00012305,2]
[322954429,1713541832343,-249.14784893,0.00012305,2]
[322954430,1713541832352,-178.35423099,0.00012341,2]
[322954431,1713541832362,-532.89332388,0.00012349,2]
[322954432,1713541832371,-155.0,0.0001235,2]
[322954433,1713541832380,-499.99,0.0001235,2]
[322954434,1713541832390,-299.99,0.0001235,2]
[322954435,1713541832399,-4913.5248962,0.00012351,2]
[322954436,1713541832411,-6055.9025272,0.00012351,2]
[322954437,1713541832423,-28970.000002,0.00012351,2]
[322954438,1713541832434,-506037.69165239,0.00012351,2]
[322954439,1713541832443,-84553.03936157,0.00012352,2]
[322954440,1713541832453,-20084.0701955,0.00012368,2]
[322954441,1713541832462,-154.39,0.00012372,2]
[322954442,1713541832471,-154.81,0.00012381,2]
[322954443,1713541832481,-16017.37143072,0.00012399,2]
[322954444,1713541832490,-154.81,0.00012416,2]
[322954445,1713541832499,-150.99,0.00012427,2]
[322954446,1713541832509,-150.99,0.00012427,2]
[322954447,1713541832519,-150.99,0.00012427,2]
[322954448,1713541832528,-9999.99,0.00012427,2]
[322954449,1713541832537,-154.39,0.00012434,2]
[322954450,1713541832546,-154.81,0.00012452,2]
[322954451,1713541832556,-154.81,0.00012488,2]
[322954452,1713541832565,-154.81,0.00012524,2]
[322954453,1713541832575,-154.81,0.0001256,2]
[322954454,1713541832583,-154.81,0.00012596,2]
[322954455,1713541832596,-154.81,0.00012631,2]
[322954456,1713541832607,-154.81,0.00012667,2]
[322954457,1713541832616,-154.81,0.00012703,2]
[322954458,1713541832625,-154.81,0.00012739,2]
[322954459,1713541832635,-154.81,0.00012775,2]
[322954460,1713541832644,-154.81,0.00012811,2]
[322954461,1713541832653,-154.81,0.00012846,2]
[322954462,1713541832662,-154.81,0.00012882,2]
[322954463,1713541832674,-183.66,0.00012905,2]
[322954464,1713541832683,-154.81,0.00012918,2]
[322954465,1713541832693,-154.81,0.00012954,2]
[322954466,1713541832702,-154.81,0.0001299,2]
[322954467,1713541832711,-3162.57273202,0.0001301,2]
[322954468,1713541832721,-1292.16997701,0.0001301,2]
[322954469,1713541832730,-154.81,0.00013026,2]
[322954470,1713541832739,-210.0,0.00013098,2]
[322954471,1713541832749,-166.93,0.00013184,2]
[322954472,1713541832758,-1000.0,0.00013401,2]
[322954473,1713541832768,-150.0,0.00013436,2]
[322954474,1713541832776,-788.70053,0.0001356,2]
[322954475,1713541832787,-563.1127,0.00013583,2]
[322954476,1713541832796,-9080.7189,0.00013583,2]
[322954477,1713541832805,-1076.7102,0.00013583,2]
[322954478,1713541832814,-173.32986147,0.00013591,2]
[322954479,1713541832824,-22951.69987699,0.00013595,2]
[322954480,1713541832833,-157.31206403,0.00013595,2]
[322954481,1713541832842,-462.5177594,0.00013595,2]
[322954482,1713541832852,-1445.9186,0.00013596,2]
[322954483,1713541832861,-150.27177791,0.00013598,2]
[322954484,1713541832870,-150.0,0.00013605,2]
[322954485,1713541832880,-155.0,0.00013682,2]
[322954486,1713541832889,-171.6256192,0.00013682,2]
[322954487,1713541832899,-182334.09615616,0.00013683,2]
[322954488,1713541832909,-155.0,0.00013695,2]
[322954489,1713541832920,-249.73515181,0.00013696,2]
[322954490,1713541832929,-500.0,0.00013698,2]
[322954491,1713541832938,-500.0,0.00013698,2]
[322954492,1713541832948,-500.0,0.00013698,2]
[322954493,1713541832958,-500.0,0.00013698,2]
[322954494,1713541832970,-500.0,0.00013698,2]
[322954495,1713541832979,-500.0,0.00013698,2]
[322954496,1713541832990,-500.0,0.00013698,2]
[322954497,1713541832999,-500.0,0.00013698,2]
[322954498,1713541833009,-500.0,0.00013698,2]
[322954499,1713541833020,-500.0,0.00013698,2]
[322954500,1713541833029,-462.13495539,0.00013698,2]
[322954501,1713541833039,-500.0,0.00013698,2]
[322954502,1713541833050,-500.0,0.00013698,2]
[322954503,1713541833059,-500.0,0.00013698,2]
[322954504,1713541833068,-412.53404512,0.00013698,2]
[322954505,1713541833078,-500.0,0.00013698,2]
[322954506,1713541833088,-500.0,0.00013698,2]
[322954507,1713541833097,-500.0,0.00013698,2]
[322954508,1713541833107,-500.0,0.00013698,2]
[322954509,1713541833117,-500.0,0.00013698,2]
[322954510,1713541833127,-500.0,0.00013698,2]
[322954511,1713541833137,-500.0,0.00013698,2]
[322954512,1713541833148,-500.0,0.00013698,2]
[322954513,1713541833157,-500.0,0.00013698,2]
[322954514,1713541833166,-2130.67,0.00013698,2]
[322954515,1713541833472,-500.0,0.00013698,2]
[322954516,1713541833503,-1146.39,0.00013698,2]
[322954517,1713541833513,-1238.35,0.00013698,2]
[322954518,1713541833522,-500.0,0.00013698,2]
[322954519,1713541833531,-896.96,0.00013698,2]
[322954520,1713541833541,-500.0,0.00013698,2]
[322954521,1713541833549,-500.0,0.00013698,2]
[322954522,1713541833559,-851.44,0.00013698,2]
[322954523,1713541833568,-889.51,0.00013698,2]
[322954524,1713541833577,-500.0,0.00013698,2]
[322954525,1713541833586,-601.82,0.00013698,2]
[322954526,1713541833597,-500.0,0.00013698,2]
[322954527,1713541833608,-563.61,0.00013698,2]
[322954528,1713541833617,-516.98,0.00013698,2]
[322954529,1713541833626,-500.0,0.00013698,2]
[322954530,1713541833637,-500.0,0.00013698,2]
[322954531,1713541833647,-500.0,0.00013698,2]
[322954532,1713541833656,-1142.84,0.00013698,2]
[322954533,1713541833666,-500.0,0.00013698,2]
[322954534,1713541833676,-500.0,0.00013698,2]
[322954535,1713541833686,-500.0,0.00013698,2]
[322954536,1713541833696,-772.78,0.00013698,2]
[322954537,1713541833705,-500.0,0.00013698,2]
[322954538,1713541833715,-500.0,0.00013698,2]
[322954539,1713541833724,-500.0,0.00013698,2]
[322954540,1713541833734,-805.12,0.00013698,2]
[322954541,1713541833743,-2734.83,0.00013698,2]
[322954542,1713541833752,-1363.77,0.00013698,2]
[322954543,1713541833762,-948.54,0.00013698,2]
[322954544,1713541833773,-500.0,0.00013698,2]
[322954545,1713541833783,-500.0,0.00013698,2]
[322954546,1713541833792,-636.70202297,0.00013698,2]
[322954547,1713541833802,-500.0,0.00013698,2]
[322954548,1713541833811,-500.0,0.00013698,2]
[322954549,1713541833821,-781.23,0.00013698,2]
[322954550,1713541833830,-500.0,0.00013698,2]
[322954551,1713541833840,-1004.26,0.00013698,2]
[322954552,1713541833850,-500.0,0.00013698,2]
[322954553,1713541833859,-500.0,0.00013698,2]
[322954554,1713541833869,-500.0,0.00013698,2]
[322954555,1713541833878,-500.0,0.00013698,2]
[322954556,1713541833887,-500.0,0.00013698,2]
[322954557,1713541833897,-500.0,0.00013698,2]
[322954558,1713541833906,-500.0,0.00013698,2]
[322954559,1713541833915,-500.0,0.00013698,2]
[322954560,1713541833924,-556.28,0.00013698,2]
[322954561,1713541833933,-1499.57,0.00013698,2]
[322954562,1713541833943,-1461.38,0.00013698,2]
[322954563,1713541833952,-500.0,0.00013698,2]
[322954564,1713541833961,-500.0,0.00013698,2]
[322954565,1713541833970,-615.43,0.00013698,2]
[322954566,1713541833980,-1554.8,0.00013698,2]
[322954567,1713541833989,-527.94,0.00013698,2]
[322954568,1713541833998,-500.0,0.00013698,2]
[322954569,1713541834007,-1274.42,0.00013698,2]
[322954570,1713541834017,-500.0,0.00013698,2]
[322954571,1713541834026,-500.0,0.00013698,2]
[322954572,1713541834035,-1300.86,0.00013698,2]
[322954573,1713541834044,-500.0,0.00013698,2]
[322954574,1713541834054,-1172.01,0.00013698,2]
[322954575,1713541834063,-500.0,0.00013698,2]
[322954576,1713541834073,-933.58,0.00013698,2]
[322954577,1713541834083,-500.0,0.00013698,2]
[322954578,1713541834092,-500.0,0.00013698,2]
[322954579,1713541834102,-500.0,0.00013698,2]
[322954580,1713541834111,-1083.84,0.00013698,2]
[322954581,1713541834120,-500.0,0.00013698,2]
[322954582,1713541834130,-926.28,0.00013698,2]
[322954583,1713541834139,-415.41626071,0.00013698,2]
[322954584,1713541834149,-2371.81,0.00013698,2]
[322954585,1713541834158,-833.42,0.00013698,2]
[322954586,1713541834167,-500.0,0.00013698,2]
[322954587,1713541834177,-687.82,0.00013698,2]
[322954588,1713541834186,-1439.53,0.00013698,2]
[322954589,1713541834196,-500.0,0.00013698,2]
[322954590,1713541834205,-500.0,0.00013698,2]
[322954591,1713541834214,-1003.94,0.00013698,2]
[322954592,1713541834224,-466.09158947,0.00013698,2]
[322954593,1713541834233,-500.0,0.00013698,2]
[322954594,1713541834243,-500.0,0.00013698,2]
[322954595,1713541834252,-500.0,0.00013698,2]
[322954596,1713541834262,-807.55,0.00013698,2]
[322954597,1713541834274,-500.0,0.00013698,2]
[322954598,1713541834283,-500.0,0.00013698,2]
[322954599,1713541834293,-500.0,0.00013698,2]
[322954600,1713541834302,-617.49,0.00013698,2]
[322954601,1713541834311,-1968.69,0.00013698,2]
[322954602,1713541834320,-538.48,0.00013698,2]
[322954603,1713541834329,-500.0,0.00013698,2]
[322954604,1713541834338,-1500.78,0.00013698,2]
[322954605,1713541834347,-2250.72,0.00013698,2]
[322954606,1713541834356,-581.02,0.00013698,2]
[322954607,1713541834365,-1260.5,0.00013698,2]
[322954608,1713541834374,-832.09,0.00013698,2]
[322954609,1713541834383,-500.0,0.00013698,2]
[322954610,1713541834393,-500.0,0.00013698,2]
[322954611,1713541834403,-500.0,0.00013698,2]
[322954612,1713541834412,-500.0,0.00013698,2]
[322954613,1713541834423,-500.0,0.00013698,2]
[322954614,1713541834432,-500.0,0.00013698,2]
[322954615,1713541834442,-500.0,0.00013698,2]
[322954616,1713541834451,-976.86,0.00013698,2]
[322954617,1713541834461,-528.3,0.00013698,2]
[322954618,1713541834471,-500.0,0.00013698,2]
[322954620,1713541834480,-500.0,0.00013698,2]
[322954621,1713541834490,-500.0,0.00013698,2]
[322954622,1713541834499,-1216.71,0.00013698,2]
[322954623,1713541834509,-500.0,0.00013698,2]
[322954624,1713541834519,-575.98594615,0.00013698,2]
[322954625,1713541834528,-500.0,0.00013698,2]
[322954626,1713541834538,-2195.23,0.00013698,2]
[322954627,1713541834547,-500.0,0.00013698,2]
[322954628,1713541834556,-500.0,0.00013698,2]
[322954629,1713541834566,-500.0,0.00013698,2]
[322954630,1713541834575,-741.42,0.00013698,2]
[322954631,1713541834584,-500.0,0.00013698,2]
[322954632,1713541834597,-500.0,0.00013698,2]
[322954633,1713541834607,-1807.25,0.00013698,2]
[322954634,1713541834617,-500.0,0.00013698,2]
[322954635,1713541834626,-900.38,0.00013698,2]
[322954636,1713541834637,-672.12,0.00013698,2]
[322954637,1713541834647,-530.92,0.00013698,2]
[322954638,1713541834657,-500.0,0.00013698,2]
[322954639,1713541834666,-821.31,0.00013698,2]
[322954640,1713541834677,-500.0,0.00013698,2]
[322954641,1713541834688,-825.94,0.00013698,2]
[322954642,1713541834698,-2274.83,0.00013698,2]
[322954643,1713541834707,-1112.4,0.00013698,2]
[322954644,1713541834716,-847.63,0.00013698,2]
[322954645,1713541834726,-866.31,0.00013698,2]
[322954646,1713541834735,-574.05,0.00013698,2]
[322954647,1713541834745,-500.0,0.00013698,2]
[322954648,1713541834754,-1093.74,0.00013698,2]
[322954649,1713541834764,-500.0,0.00013698,2]
[322954650,1713541834774,-500.0,0.00013698,2]
[322954651,1713541834784,-500.0,0.00013698,2]
[322954652,1713541834793,-1680.23,0.00013698,2]
[322954653,1713541834803,-634.13,0.00013698,2]
[322954654,1713541834812,-500.0,0.00013698,2]
[322954655,1713541834822,-500.0,0.00013698,2]
[322954656,1713541834832,-493.56272726,0.00013698,2]
[322954657,1713541834841,-846.92,0.00013698,2]
[322954658,1713541834850,-500.0,0.00013698,2]
[322954659,1713541834860,-500.0,0.00013698,2]
[322954660,1713541834869,-574.25,0.00013698,2]
[322954661,1713541834878,-503.66,0.00013698,2]
[322954662,1713541834887,-500.0,0.00013698,2]
[322954663,1713541834897,-500.0,0.00013698,2]
[322954664,1713541834906,-500.0,0.00013698,2]
[322954665,1713541834915,-500.0,0.00013698,2]
[322954666,1713541834924,-564.57,0.00013698,2]
[322954667,1713541834933,-500.0,0.00013698,2]
[322954668,1713541834943,-500.0,0.00013698,2]
[322954669,1713541834953,-500.0,0.00013698,2]
[322954670,1713541834962,-500.0,0.00013698,2]
[322954671,1713541834972,-596.37,0.00013698,2]
[322954672,1713541834982,-500.0,0.00013698,2]
[322954673,1713541834992,-964.1,0.00013698,2]
[322954674,1713541835001,-500.0,0.00013698,2]
[322954675,1713541835010,-500.0,0.00013698,2]
[322954676,1713541835020,-500.0,0.00013698,2]
[322954677,1713541835029,-1362.44,0.00013698,2]
[322954678,1713541835039,-1379.79,0.00013698,2]
[322954679,1713541835049,-521.46,0.00013698,2]
[322954680,1713541835059,-1315.79,0.00013698,2]
[322954681,1713541835068,-500.0,0.00013698,2]
[322954682,1713541835078,-1087.71,0.00013698,2]
[322954683,1713541835087,-500.0,0.00013698,2]
[322954684,1713541835097,-773.48,0.00013698,2]
[322954685,1713541835106,-500.0,0.00013698,2]
[322954686,1713541835116,-1086.21,0.00013698,2]
[322954687,1713541835126,-500.0,0.00013698,2]
[322954688,1713541835136,-1573.14,0.00013698,2]
[322954689,1713541835146,-1260.11,0.00013698,2]
[322954690,1713541835156,-500.0,0.00013698,2]
[322954691,1713541835166,-895.31,0.00013698,2]
[322954692,1713541835176,-500.0,0.00013698,2]
[322954693,1713541835186,-500.0,0.00013698,2]
[322954694,1713541835196,-500.0,0.00013698,2]
[322954695,1713541835206,-500.0,0.00013698,2]
[322954696,1713541835216,-746.38,0.00013698,2]
[322954697,1713541835226,-856.51,0.00013698,2]
[322954698,1713541835235,-801.29,0.00013698,2]
[322954699,1713541835245,-1716.37,0.00013698,2]
[322954700,1713541835255,-500.0,0.00013698,2]
[322954701,1713541835264,-500.0,0.00013698,2]
[322954702,1713541835275,-678.28,0.00013698,2]
[322954703,1713541835285,-500.0,0.00013698,2]
[322954704,1713541835295,-500.0,0.00013698,2]
[322954705,1713541835305,-567.85,0.00013698,2]
[322954706,1713541835315,-547.17,0.00013698,2]
[322954707,1713541835325,-597.62,0.00013698,2]
[322954708,1713541835334,-605.12,0.00013698,2]
[322954709,1713541835344,-794.81,0.00013698,2]
[322954710,1713541835354,-630.77,0.00013698,2]
[322954711,1713541835364,-500.0,0.00013698,2]
[322954712,1713541835373,-500.0,0.00013698,2]
[322954713,1713541835383,-595.95,0.00013698,2]
[322954714,1713541835393,-500.0,0.00013698,2]
[322954715,1713541835402,-500.0,0.00013698,2]
[322954716,1713541835412,-500.0,0.00013698,2]
[322954717,1713541835422,-664.07,0.00013698,2]
[322954718,1713541835432,-500.0,0.00013698,2]
[322954719,1713541835442,-500.0,0.00013698,2]
[322954720,1713541835452,-484.66401559,0.00013698,2]
[322954721,1713541835462,-1026.94,0.00013698,2]
[322954722,1713541835472,-506.72,0.00013698,2]
[322954723,1713541835482,-500.0,0.00013698,2]
[322954724,1713541835492,-500.0,0.00013698,2]
[322954725,1713541835502,-500.0,0.00013698,2]
[322954726,1713541835511,-500.0,0.00013698,2]
[322954727,1713541835522,-1891.94,0.00013698,2]
[322954728,1713541835531,-500.0,0.00013698,2]
[322954729,1713541835541,-706.46,0.00013698,2]
[322954730,1713541835551,-500.0,0.00013698,2]
[322954731,1713541835561,-500.0,0.00013698,2]
[322954732,1713541835571,-500.0,0.00013698,2]
[322954733,1713541835581,-695.28,0.00013698,2]
[322954734,1713541835593,-500.0,0.00013698,2]
[322954735,1713541835605,-823.13,0.00013698,2]
[322954736,1713541835615,-573.27,0.00013698,2]
[322954737,1713541835626,-932.07,0.00013698,2]
[322954738,1713541835636,-524.01,0.00013698,2]
[322954739,1713541835645,-581.96,0.00013698,2]
[322954740,1713541835654,-500.0,0.00013698,2]
[322954741,1713541835664,-514.18,0.00013698,2]
[322954742,1713541835674,-500.0,0.00013698,2]
[322954743,1713541835684,-1479.6,0.00013698,2]
[322954744,1713541835694,-1684.47,0.00013698,2]
[322954745,1713541835703,-500.0,0.00013698,2]
[322954746,1713541835713,-500.0,0.00013698,2]
[322954747,1713541835723,-500.0,0.00013698,2]
[322954748,1713541835732,-500.0,0.00013698,2]
[322954749,1713541835742,-500.0,0.00013698,2]
[322954750,1713541835752,-1116.88,0.00013698,2]
[322954751,1713541835762,-500.0,0.00013698,2]
[322954752,1713541835774,-500.0,0.00013698,2]
[322954753,1713541835784,-500.0,0.00013698,2]
[322954754,1713541835794,-1821.42,0.00013698,2]
[322954755,1713541835803,-500.0,0.00013698,2]
[322954756,1713541835813,-500.0,0.00013698,2]
[322954757,1713541835822,-740.13,0.00013698,2]
[322954758,1713541835832,-500.0,0.00013698,2]
[322954759,1713541835841,-500.0,0.00013698,2]
[322954760,1713541835850,-500.0,0.00013698,2]
[322954761,1713541835860,-500.0,0.00013698,2]
[322954762,1713541835869,-2369.89,0.00013698,2]
[322954763,1713541835879,-500.0,0.00013698,2]
[322954764,1713541835888,-500.0,0.00013698,2]
[322954765,1713541835898,-1078.86,0.00013698,2]
[322954766,1713541835909,-500.0,0.00013698,2]
[322954767,1713541835918,-1428.11,0.00013698,2]
[322954768,1713541835929,-1480.73,0.00013698,2]
[322954769,1713541835938,-1508.68,0.00013698,2]
[322954770,1713541835948,-500.0,0.00013698,2]
[322954771,1713541835958,-720.72,0.00013698,2]
[322954772,1713541835968,-1694.37,0.00013698,2]
[322954773,1713541835978,-1987.25,0.00013698,2]
[322954774,1713541835988,-2452.05,0.00013698,2]
[322954775,1713541835997,-1826.61,0.00013698,2]
[322954776,1713541836006,-1112.31,0.00013698,2]
[322954777,1713541836016,-615.73125343,0.00013698,2]
[322954778,1713541836026,-500.0,0.00013698,2]
[322954779,1713541836035,-880.31,0.00013698,2]
[322954780,1713541836045,-500.0,0.00013698,2]
[322954781,1713541836055,-958.22,0.00013698,2]
[322954782,1713541836064,-500.0,0.00013698,2]
[322954783,1713541836074,-1403.07,0.00013698,2]
[322954784,1713541836084,-567.99,0.00013698,2]
[322954785,1713541836094,-500.0,0.00013698,2]
[322954786,1713541836104,-1598.06,0.00013698,2]
[322954787,1713541836114,-722.35,0.00013698,2]
[322954788,1713541836124,-1750.57,0.00013698,2]
[322954789,1713541836133,-670.38,0.00013698,2]
[322954790,1713541836143,-500.0,0.00013698,2]
[322954791,1713541836153,-763.51,0.00013698,2]
[322954792,1713541836162,-500.0,0.00013698,2]
[322954793,1713541836172,-1765.15,0.00013698,2]
[322954794,1713541836182,-500.0,0.00013698,2]
[322954795,1713541836191,-500.0,0.00013698,2]
[322954796,1713541836201,-1226.31,0.00013698,2]
[322954797,1713541836211,-1364.83,0.00013698,2]
[322954798,1713541836220,-500.0,0.00013698,2]
[322954799,1713541836230,-1082.07,0.00013698,2]
[322954800,1713541836241,-500.0,0.00013698,2]
[322954801,1713541836250,-1377.98,0.00013698,2]
[322954802,1713541836261,-568.48,0.00013698,2]
[322954803,1713541836272,-854.13,0.00013698,2]
[322954804,1713541836282,-1133.66,0.00013698,2]
[322954805,1713541836292,-2092.52,0.00013698,2]
[322954806,1713541836302,-500.0,0.00013698,2]
[322954807,1713541836313,-786.06,0.00013698,2]
[322954808,1713541836322,-163.53688691,0.00013698,2]
[322954809,1713541836332,-1343.0,0.00013698,2]
[322954810,1713541836342,-1628.6,0.00013698,2]
[322954811,1713541836352,-1532.22,0.00013698,2]
[322954812,1713541836362,-500.0,0.00013698,2]
[322954813,1713541836373,-1137.21,0.00013698,2]
[322954814,1713541836384,-1177.25,0.00013698,2]
[322954815,1713541836394,-926.83,0.00013698,2]
[322954816,1713541836404,-500.0,0.00013698,2]
[322954817,1713541836415,-500.0,0.00013698,2]
[322954818,1713541836425,-1758.95,0.00013698,2]
[322954819,1713541836434,-2620.22,0.00013698,2]
[322954820,1713541836444,-500.0,0.00013698,2]
[322954821,1713541836454,-445.395827,0.00013698,2]
[322954822,1713541836464,-500.0,0.00013698,2]
[322954823,1713541836474,-761.22,0.00013698,2]
[322954824,1713541836484,-500.0,0.00013698,2]
[322954825,1713541836493,-2965.45,0.00013698,2]
[322954826,1713541836503,-500.0,0.00013698,2]
[322954827,1713541836512,-954.3,0.00013698,2]
[322954828,1713541836524,-500.0,0.00013698,2]
[322954829,1713541836535,-695.59,0.00013698,2]
[322954830,1713541836544,-1543.65,0.00013698,2]
[322954831,1713541836554,-600.91014927,0.00013698,2]
[322954832,1713541836563,-1656.33,0.00013698,2]
[322954833,1713541836573,-820.47,0.00013698,2]
[322954834,1713541836583,-500.0,0.00013698,2]
[322954835,1713541836597,-550.01,0.00013698,2]
[322954836,1713541836607,-500.0,0.00013698,2]
[322954837,1713541836617,-1051.0,0.00013698,2]
[322954838,1713541836626,-719.74176478,0.00013698,2]
[322954839,1713541837645,-269.15898724,0.00013698,2]
[322955011,1713541841237,-736.16924798,0.00013698,2]
[322955012,1713541841248,-500.0,0.00013698,2]
[322955013,1713541841257,-642.11,0.00013698,2]
[322955014,1713541841268,-1459.78,0.00013698,2]
[322955015,1713541841277,-500.0,0.00013698,2]
[322955016,1713541841286,-92.50060713,0.00013698,2]
[322955017,1713541841464,-433.05379998,0.00013698,2]
[322955018,1713541841476,-621.8,0.00013698,2]
[322955019,1713541841508,-50.51559289,0.00013698,2]
[322955020,1713541841518,-600.45,0.00013698,2]
[322955021,1713541841528,-1344.15,0.00013698,2]
[322955022,1713541841540,-1999.48,0.00013698,2]
[322955023,1713541841550,-1113.23,0.00013698,2]
[322955024,1713541841559,-783.54,0.00013698,2]
[322955025,1713541841568,-1072.38,0.00013698,2]
[322955026,1713541841577,-3093.38,0.00013698,2]
[322955027,1713541841586,-620.7,0.00013698,2]
[322955028,1713541841595,-1311.37,0.00013698,2]
[322955029,1713541841606,-500.0,0.00013698,2]
[322955030,1713541841616,-1307.61,0.00013698,2]
[322955031,1713541841625,-2799.69,0.00013698,2]
[322955032,1713541841635,-500.0,0.00013698,2]
[322955033,1713541841645,-792.36,0.00013698,2]
[322955034,1713541841655,-500.0,0.00013698,2]
[322955035,1713541841664,-1561.18,0.00013698,2]
[322955036,1713541841673,-2009.49,0.00013698,2]
[322955037,1713541841684,-500.0,0.00013698,2]
[322955038,1713541841694,-725.51,0.00013698,2]
[322955039,1713541841703,-500.0,0.00013698,2]
[322955040,1713541841712,-1200.27,0.00013698,2]
[322955041,1713541841721,-500.0,0.00013698,2]
[322955042,1713541841731,-500.0,0.00013698,2]